bitfinex-derivatives/quotes_SOLF0:USTF0_20260102
["timestamp","ask_amount","ask_price","bid_price","bid_amount"]
[1767365454038,0.05812608,129.35,129.29,108.3746]
[1767365454235,0.05812608,129.35,129.29,108.3739]
[1767365454734,0.05812608,129.35,129.31,115.3243]
[1767365454936,108.2209,129.48,129.31,115.3243]
[1767365454937,0.32023353,129.45,129.34,108.3333]
[1767365455136,0.32023353,129.45,129.31,199.6188]
[1767365455338,0.32023353,129.45,129.33,108.3422]
[1767365455538,0.32023353,129.45,129.32,199.6302]
[1767365455539,0.32023353,129.45,129.32,108.3502]
[1767365455732,0.32023353,129.44,129.33,91.28]
[1767365456037,0.05180921,129.4,129.31,108.3579]
[1767365456337,0.32023353,129.43,129.31,108.3579]
[1767365456535,0.32023353,129.43,129.32,115.3152]
[1767365456744,0.32023353,129.43,129.32,6.965]
[1767365456933,0.04978599,129.39,129.36,0.05161611]
[1767365457131,0.33234952,129.46,129.36,199.5935]
[1767365457334,0.33234952,129.46,129.35,108.3216]
[1767365457532,0.33234952,129.46,129.35,199.6016]
[1767365457936,0.33234952,129.46,129.35,91.28]
[1767365458135,0.33234952,129.46,129.35,199.6024]
[1767365458332,0.33234952,129.46,129.35,91.28]
[1767365458534,0.05640794,129.42,129.35,91.28]
[1767365458738,0.05640794,129.42,129.32,91.3]
[1767365458944,0.33234952,129.43,129.32,91.3]
[1767365459137,7.29204952,129.43,129.31,115.3213]
[1767365459338,0.33234952,129.42,129.32,91.3]
[1767365459539,0.05516711,129.38,129.36,0.05014599]
[1767365459736,108.2458,129.45,129.36,0.05014599]
[1767365459737,6.9563,129.49,129.38,115.2617]
[1767365459942,6.9563,129.49,129.39,91.3]
[1767365459943,0.33234952,129.47,129.39,91.3]
[1767365460144,0.33234952,129.47,129.35,108.3242]
[1767365460339,0.33234952,129.47,129.35,199.6242]
[1767365460535,0.33234952,129.45,129.35,199.6233]
[1767365460737,108.51894952,129.52,129.39,108.2919]
[1767365460941,0.33234952,129.51,129.39,108.2919]
[1767365461240,0.33234952,129.51,129.39,199.5919]
[1767365461441,91.26,129.53,129.42,108.2658]
[1767365461747,91.59234952,129.53,129.41,91.3]
[1767365462042,0.05480287,129.48,129.38,91.3]
[1767365462239,108.2107,129.49,129.36,108.3102]
[1767365462438,0.33234952,129.48,129.37,91.32]
[1767365462640,0.33234952,129.47,129.37,6.9626]
[1767365463039,0.04877534,129.43,129.41,0.05514463]
[1767365463234,0.33234952,129.47,129.41,0.05514463]
[1767365463443,0.33234952,129.51,129.41,0.05514463]
[1767365463645,0.33234952,129.51,129.4,108.2809]
[1767365463940,7.28784952,129.51,129.39,108.2914]
[1767365464146,0.05328193,129.46,129.44,0.05597478]
[1767365464446,6.43192856,129.56,129.43,108.2559]
[1767365464447,0.33234952,129.55,129.43,108.2559]
[1767365464743,0.33234952,129.55,129.41,108.275]
[1767365464744,0.33234952,129.53,129.41,108.275]
[1767365464939,108.1841,129.52,129.38,108.2949]
[1767365465145,0.33234952,129.49,129.36,108.3167]
[1767365465341,0.33234952,129.49,129.37,199.6285]
[1767365465548,0.0531408,129.44,129.42,0.05411686]
[1767365465744,0.0531408,129.44,129.35,108.3227]
[1767365465745,0.05305651,129.44,129.34,108.3282]
[1767365465945,0.33234952,129.46,129.35,91.32]
[1767365466142,7.29104952,129.45,129.34,91.3]
[1767365466348,0.33234952,129.44,129.33,108.339]
[1767365466645,0.33234952,129.44,129.34,98.2639]
[1767365466852,0.05630601,129.4,129.38,0.04938319]
[1767365467753,0.0075681,129.4,129.38,0.04938319]
[1767365467951,0.33234952,129.49,129.38,109.88948319]
[1767365468251,0.33234952,129.49,129.32,20.65521236]
[1767365468252,0.33234952,129.46,129.33,108.3387]
[1767365468451,108.2651,129.43,129.29,108.371]
[1767365468640,0.33234952,129.41,129.3,91.32]
[1767365468847,0.33234952,129.4,129.3,91.32]
[1767365469042,0.0585094,129.36,129.34,0.05386576]
[1767365469250,0.0585094,129.36,129.29,98.2867]
[1767365469548,0.0585094,129.36,129.3,108.3673]
[1767365470044,0.0585094,129.36,129.32,6.9651]
[1767365470245,0.33234952,129.44,129.31,199.6764]
[1767365470449,0.33234952,129.42,129.31,91.32]
[1767365470642,0.33234952,129.42,129.31,199.6746]
[1767365470849,6.9568,129.48,129.38,6.9618]
[1767365471044,0.33234952,129.49,129.37,199.6254]
[1767365471240,108.2178,129.48,129.42,0.05091223]
[1767365471439,108.2178,129.48,129.37,91.32]
[1767365471440,6.9581,129.46,129.37,91.32]
[1767365471756,6.9581,129.46,129.36,91.32]
[1767365471948,0.33234952,129.47,129.38,6.9619]
[1767365472339,0.04977625,129.44,129.41,0.05447171]
[1767365472537,0.04977625,129.44,129.41,0.0545282]
[1767365474156,0.04977625,129.44,129.31,108.3521]
[1767365474157,0.04977625,129.44,129.34,91.32]
[1767365474357,0.33234952,129.45,129.34,91.32]
[1767365474542,6.9591,129.44,129.33,108.3421]
[1767365474852,0.33234952,129.45,129.34,199.6508]
[1767365475053,0.05714131,129.41,129.38,0.05758223]
[1767365475346,0.33234952,129.45,129.38,0.05758223]
[1767365475347,0.33234952,129.49,129.38,91.37758223]
[1767365475649,0.33234952,129.45,129.32,108.3448]
[1767365476051,0.33234952,129.44,129.33,91.32]
[1767365476437,0.05323432,129.4,129.37,0.05931263]
[1767365480148,0.33234952,129.49,129.37,109.90241263]
[1767365480448,0.33234952,129.49,129.34,91.32]
[1767365480449,6.9591,129.44,129.34,91.32]
[1767365480956,0.33234952,129.44,129.36,6.9631]
[1767365481150,0.05762835,129.4,129.38,0.05751696]
[1767365481548,108.2278,129.47,129.38,7.01951696]
[1767365481549,98.2377,129.47,129.38,7.01951696]
[1767365481762,0.33234952,129.51,129.38,108.2976]
[1767365482052,6.9565,129.49,129.4,6.9608]
[1767365482251,0.33234952,129.49,129.4,6.9608]
[1767365482454,0.33234952,129.49,129.37,199.6466]
[1767365482755,0.0578599,129.46,129.43,0.05862142]
[1767365483161,0.0578599,129.46,129.38,6.9617]
[1767365483462,0.33234952,129.52,129.4,108.2831]
[1767365483657,0.33234952,129.51,129.4,108.2831]
[1767365484162,0.04920026,129.47,129.44,7.00884641]
[1767365484356,0.33234952,129.55,129.44,108.29594641]
[1767365484557,0.33234952,129.55,129.44,108.2458]
[1767365484854,0.33234952,129.54,129.42,91.32]
[1767365485053,0.33234952,129.51,129.39,199.6071]
[1767365485458,0.05567185,129.46,129.44,0.05619642]
[1767365485660,0.05347729,129.46,129.44,0.05619642]
[1767365486256,0.05347729,129.46,129.36,91.32]
[1767365486561,91.62327473,129.48,129.36,91.32]
[1767365487164,0.04915253,129.43,129.36,98.2829]
[1767365487458,0.04915253,129.43,129.36,91.32]
[1767365487663,0.04915253,129.43,129.35,108.3226]
[1767365487862,0.34327473,129.47,129.35,199.6426]
[1767365488060,7.30137473,129.46,129.35,199.6426]
[1767365488261,0.05835752,129.42,129.39,0.05407214]
[1767365488461,0.05835752,129.42,129.33,108.3356]
[1767365488659,0.34327473,129.45,129.36,6.963]
[1767365488862,0.34327473,129.49,129.37,108.3074]
[1767365489255,0.34327473,129.49,129.36,199.6324]
[1767365489256,6.9569,129.48,129.39,6.9615]
[1767365489452,0.0511431,129.45,129.42,0.05743272]
[1767365489666,0.39441783,129.45,129.33,108.3356]
[1767365489863,0.34327473,129.43,129.33,91.32]
[1767365490264,0.34327473,129.43,129.32,108.3478]
[1767365490466,0.34327473,129.43,129.32,199.6678]
[1767365490669,0.05903424,129.39,129.36,0.05277618]
[1767365491066,91.62327473,129.46,129.36,0.05277618]
[1767365491264,91.62327473,129.46,129.35,108.3249]
[1767365491265,0.34327473,129.46,129.35,108.3249]
[1767365491468,6.9585,129.45,129.35,6.9637]
[1767365491665,0.34327473,129.45,129.35,6.9637]
[1767365491865,0.34327473,129.45,129.34,199.6509]
[1767365492159,0.05319916,129.41,129.38,0.05871432]
[1767365492358,7.20127183,129.48,129.38,0.05871432]
[1767365492556,7.20127183,129.48,129.34,108.3309]
[1767365492557,6.07714598,129.47,129.34,108.3309]
[1767365492755,6.9585,129.45,129.37,6.9625]
[1767365492961,0.34327473,129.46,129.37,6.9625]
[1767365493370,0.05239711,129.43,129.4,0.04968752]
[1767365493572,0.05239711,129.43,129.35,6.9633]
[1767365493766,6.9585,129.45,129.31,108.3534]
[1767365493767,0.34327473,129.44,129.31,108.3534]
[1767365493968,7.30227473,129.44,129.35,6.9636]
[1767365494766,0.05416118,129.41,129.38,0.05460157]
[1767365495765,0.05416118,129.41,129.33,91.32]
[1767365495966,0.34327473,129.44,129.33,91.32]
[1767365496173,0.34327473,129.42,129.3,108.3655]
[1767365496367,0.34327473,129.4,129.27,108.3856]
[1767365496576,6.9625,129.38,129.29,6.9667]
[1767365496877,0.05110863,129.35,129.32,0.05446407]
[1767365497874,108.61937473,129.41,129.32,0.05446407]
[1767365497875,199.90467473,129.41,129.32,0.05446407]
[1767365498076,199.90467473,129.41,129.27,199.7256]
[1767365498077,5.76033618,129.4,129.27,199.7256]
[1767365498269,199.90467473,129.41,129.28,108.3824]
[1767365498473,199.90467473,129.41,129.27,108.3856]
[1767365498474,7.30537473,129.39,129.27,108.3856]
[1767365498675,7.30537473,129.39,129.28,108.382]
[1767365499079,0.05643472,129.35,129.32,0.05712844]
[1767365502382,7.02023472,129.35,129.25,115.60407183]
[1767365502585,0.34327473,129.37,129.25,115.60407183]
[1767365502586,0.34327473,129.36,129.25,7.20127183]
[1767365502783,0.34327473,129.35,129.24,91.34]
[1767365502985,0.34327473,129.35,129.24,199.754]
[1767365503387,0.05327479,129.31,129.28,0.05539374]
[1767365503786,0.05327479,129.31,129.24,91.34]
[1767365503985,0.05327479,129.31,129.25,6.9689]
[1767365504796,0.05327479,129.31,129.27,0.05127769]
[1767365505387,0.05327479,129.31,129.28,6.9673]
[1767365505589,91.66327473,129.37,129.27,108.43977769]
[1767365505590,0.34327473,129.37,129.27,108.43977769]
[1767365505788,0.34327473,129.37,129.27,108.3885]
[1767365506192,6.9615,129.4,129.29,115.57407183]
[1767365506396,6.9615,129.4,129.29,206.93407183]
[1767365506596,0.05696643,129.36,129.33,0.05381612]
[1767365506798,0.05696643,129.36,129.33,0.05686224]
[1767365507889,0.05696643,129.36,129.29,98.3265]
[1767365508395,0.05696643,129.36,129.3,6.9663]
[1767365508603,0.05696643,129.36,129.3,108.366]
[1767365508798,0.05696643,129.36,129.3,199.726]
[1767365509007,0.00532654,129.36,129.34,6.9642]
[1767365509188,0.00532654,129.36,129.32,0.05409003]
[1767365509594,0.34327473,129.42,129.32,0.05409003]
[1767365509903,0.34327473,129.42,129.31,108.3582]
[1767365510104,0.34327473,129.42,129.3,199.726]
[1767365510301,0.34327473,129.42,129.34,6.9642]
[1767365510694,0.05362117,129.39,129.37,0.05101391]
[1767365511805,91.32,129.44,129.37,0.05101391]
[1767365512596,0.34327473,129.43,129.37,0.05101391]
[1767365512799,0.04873494,129.41,129.37,0.05101391]
[1767365515202,0.34327473,129.49,129.37,4.48055515]
[1767365515404,0.34327473,129.49,129.39,11.39094124]
[1767365515906,6.9574,129.47,129.39,4.42954124]
[1767365516200,0.34414606,129.47,129.37,6.9623]
[1767365516407,0.05934651,129.44,129.42,0.05779583]
[1767365516997,0.05934651,129.44,129.37,4.42954124]
[1767365517198,0.05934651,129.44,129.36,91.36]
[1767365517398,7.30274606,129.45,129.36,98.3231]
[1767365517594,7.30274606,129.45,129.37,4.42954124]
[1767365517804,0.34414606,129.45,129.37,4.42954124]
[1767365518001,91.3,129.48,129.4,0.05705556]
[1767365518306,91.64414606,129.48,129.39,11.39084124]
[1767365518604,6.9574,129.47,129.39,4.42954124]
[1767365519015,0.05087362,129.44,129.42,0.05500707]
[1767365519203,91.3,129.48,129.42,0.05500707]
[1767365519509,0.34414606,129.47,129.42,0.05500707]
[1767365519708,7.30154606,129.47,129.42,0.05500707]
[1767365519904,0.34414606,129.47,129.36,4.42954124]
[1767365520299,0.34414606,129.47,129.38,4.42954124]
[1767365520808,0.34414606,129.46,129.34,91.34]
[1767365521112,0.34414606,129.42,129.33,91.34]
[1767365521306,0.34414606,129.41,129.34,4.42954124]
[1767365521609,108.59724606,129.44,129.31,108.3569]
[1767365521802,0.34414606,129.4,129.32,4.42954124]
[1767365522002,0.05550884,129.37,129.35,0.04910974]
[1767365522211,0.05550884,129.37,129.28,91.34]
[1767365522413,0.34414606,129.37,129.28,91.34]
[1767365522715,0.34414606,129.35,129.23,108.4258]
[1767365522902,0.34414606,129.35,129.18,108.4621]
[1767365522903,0.34414606,129.33,129.18,108.4621]
[1767365523106,0.05136143,129.28,129.25,0.0590979]
[1767365523306,0.05136143,129.28,129.25,0.05835132]
[1767365523709,0.34414606,129.27,129.17,4.42954124]
[1767365523911,0.34414606,129.26,129.15,4.42954124]
[1767365524099,0.34414606,129.25,129.14,122.20360273]
[1767365524303,0.34414606,129.25,129.14,20.68150273]
[1767365524503,0.34414606,129.25,129.16,4.42954124]
[1767365524720,0.05848392,129.22,129.14,9.27706149]
[1767365524922,0.34414606,129.22,129.11,91.34]
[1767365525221,91.64414606,129.21,129.11,91.34]
[1767365525404,0.34414606,129.21,129.11,204.29344124]
[1767365525609,0.34414606,129.21,129.12,108.518]
[1767365525819,0.05892754,129.17,129.15,0.05706869]
[1767365526021,0.34414606,129.24,129.15,0.05706869]
[1767365526215,0.34414606,129.24,129.12,11.40564124]
[1767365526514,91.66414606,129.24,129.14,11.40444124]
[1767365526711,108.77124606,129.23,129.07,108.5554]
[1767365526914,0.34414606,129.23,129.15,0.05364584]
[1767365527118,0.34414606,129.23,129.11,115.5028]
[1767365527422,0.34414606,129.22,129.11,6.9765]
[1767365527720,0.34414606,129.2,129.1,4.42954124]
[1767365527923,0.05090654,129.16,129.14,0.05938559]
[1767365528320,0.05090654,129.16,129.09,199.922]
[1767365528516,0.05090654,129.16,129.09,91.38]
[1767365528813,0.05090654,129.16,129.08,4.42954124]
[1767365529019,91.68414606,129.19,129.09,108.5434]
[1767365529314,115.4123,129.22,129.13,0.05665838]
[1767365529620,108.79554606,129.2,129.08,4.42954124]
[1767365529923,91.70414606,129.2,129.09,6.9773]
[1767365530117,91.70414606,129.2,129.09,11.40684124]
[1767365530511,0.34414606,129.22,129.13,0.05064094]
[1767365530716,0.34414606,129.22,129.11,11.40584124]
[1767365530919,0.34414606,129.21,129.09,119.95054124]
[1767365531113,0.34414606,129.2,129.09,11.40714124]
[1767365531315,108.72904606,129.28,129.15,108.4867]
[1767365531514,0.05903037,129.23,129.2,0.05834036]
[1767365531723,0.05903037,129.23,129.2,0.05251408]
[1767365533216,0.05903037,129.23,129.14,115.4751]
[1767365533413,91.4,129.26,129.15,112.91454124]
[1767365533618,91.74414606,129.26,129.15,112.91454124]
[1767365534018,4.7736873,129.26,129.06,325.6936]
[1767365534220,0.04876323,129.17,129.15,0.05265417]
[1767365534421,0.05111273,129.17,129.11,4.42954124]
[1767365534623,0.05111273,129.17,129.15,0.05356614]
[1767365534920,108.4039,129.26,129.15,0.05356614]
[1767365534921,91.74414606,129.25,129.15,4.48310738]
[1767365535226,0.34414606,129.25,129.15,11.40374124]
[1767365535424,91.74414606,129.25,129.15,6.9742]
[1767365535628,91.74414606,129.25,129.13,91.44]
[1767365535826,0.05029021,129.21,129.19,0.05063893]
[1767365536123,0.05029021,129.21,129.13,204.37914124]
[1767365536425,0.34414606,129.24,129.13,95.86954124]
[1767365536726,0.34414606,129.23,129.11,95.86954124]
[1767365536921,0.05335054,129.18,129.16,0.05112497]
[1767365537123,98.71464606,129.23,129.16,0.05112497]
[1767365537322,0.34414606,129.22,129.16,0.05112497]
[1767365537517,0.04867349,129.21,129.16,0.05112497]
[1767365538223,0.39281955,129.21,129.16,0.05112497]
[1767365538429,0.39281955,129.21,129.1,4.42954124]
[1767365538627,0.34414606,129.21,129.11,6.9765]
[1767365538819,0.34414606,129.21,129.09,4.42954124]
[1767365539022,0.34414606,129.17,129.05,221.57714124]
[1767365539326,112.88994124,129.19,129.05,221.57714124]
[1767365539327,91.42,129.19,129.1,0.05064273]
[1767365539528,91.42,129.19,129.08,108.5518]
[1767365539727,108.79804606,129.2,129.09,6.9774]
[1767365539932,0.34414606,129.19,129.06,91.46]
[1767365540120,108.83164606,129.16,129.04,4.42954124]
[1767365540426,0.05723482,129.11,129.01,200.0643]
[1767365540635,98.73994606,129.13,129.02,108.6022]
[1767365540820,98.73994606,129.13,129.03,4.42954124]
[1767365541016,200.24304606,129.17,129.05,4.42954124]
[1767365541216,0.34414606,129.12,129.02,91.46]
[1767365541432,0.05631993,129.08,129.06,0.0531429]
[1767365541620,0.05286735,129.08,129.06,0.05072757]
[1767365542428,0.34414606,129.16,129.06,0.05072757]
[1767365542626,91.78414606,129.16,129.04,4.42954124]
[1767365542821,91.78414606,129.16,129.0,113.04264124]
[1767365542822,0.34414606,129.13,129.0,113.04264124]
[1767365543128,108.83204606,129.16,129.04,4.42954124]
[1767365543334,0.05642181,129.11,129.0,95.90954124]
[1767365543633,0.34414606,129.11,129.0,91.48]
[1767365543827,91.78414606,129.11,129.0,91.48]
[1767365544324,0.34414606,129.11,129.0,204.52634124]
[1767365544523,112.92954124,129.15,129.04,4.47986208]
[1767365544524,0.00040413,129.07,129.04,4.47986208]
[1767365544727,0.34414606,129.14,129.02,113.02954124]
[1767365545117,7.31954606,129.14,129.04,6.9803]
[1767365545431,0.34414606,129.14,129.05,4.42954124]
[1767365545633,0.05620513,129.1,129.08,0.05217321]
[1767365545931,7.31784606,129.17,129.08,0.05217321]
[1767365546235,200.25696069,129.2,129.07,4.42954124]
[1767365546424,0.33986069,129.18,129.07,4.42954124]
[1767365546729,7.31356069,129.17,129.06,91.5]
[1767365546921,0.05585905,129.13,129.1,0.05719729]
[1767365547423,0.33986069,129.21,129.1,0.05719729]
[1767365547622,91.46,129.2,129.09,4.42954124]
[1767365547928,7.31176069,129.2,129.11,6.9765]
[1767365548128,0.33986069,129.2,129.09,4.42954124]
[1767365548524,0.05816466,129.16,129.13,0.05713968]
[1767365549430,0.05816466,129.16,129.07,204.48704124]
[1767365549630,0.33986069,129.17,129.07,91.5]
[1767365550538,0.05812766,129.13,129.05,11.40924124]
[1767365550733,0.33986069,129.15,129.05,4.42954124]
[1767365551136,0.33986069,129.15,129.05,113.00434124]
[1767365551626,0.05378241,129.11,129.09,0.05712659]
[1767365552226,0.05378241,129.11,129.02,108.5958]
[1767365552429,0.33986069,129.16,129.04,108.5828]
[1767365552628,0.33986069,129.15,129.04,108.5828]
[1767365552933,0.33986069,129.15,129.07,6.9785]
[1767365553235,0.05557983,129.12,129.03,4.42954124]
[1767365553431,0.33986069,129.15,129.03,4.42954124]
[1767365553739,7.31516069,129.14,129.03,4.42954124]
[1767365554029,7.31516069,129.14,129.03,113.02054124]
[1767365554238,0.05484712,129.1,129.07,0.05436436]
[1767365555632,0.05484712,129.1,129.02,91.52]
[1767365555825,0.33986069,129.12,128.99,108.6229]
[1767365555826,6.9779,129.09,129.01,6.9817]
[1767365556026,0.33986069,129.09,128.98,91.52]
[1767365556437,6.9795,129.06,128.98,98.5035]
[1767365556631,0.0552087,129.03,129.01,0.05365327]
[1767365556831,0.05243899,129.03,129.01,0.05365327]
[1767365557735,0.05243899,129.03,128.97,6.9841]
[1767365557935,0.05243899,129.03,128.98,6.9836]
[1767365558140,434.0292,129.14,128.98,108.6305]
[1767365558141,108.87066069,129.11,128.98,108.6305]
[1767365558342,0.33986069,129.1,128.99,4.42954124]
[1767365558632,6.9768,129.11,129.01,4.42954124]
[1767365559225,6.9758,129.13,129.05,0.05290231]
[1767365559429,6.9758,129.13,129.04,6.98]
[1767365559631,6.9758,129.13,129.05,6.9798]
[1767365560027,6.9765,129.12,129.02,91.54]
[1767365560228,0.05720387,129.08,129.06,0.05508523]
[1767365560837,0.05720387,129.08,129.02,98.5212]
[1767365561335,0.05720387,129.08,129.02,91.54]
[1767365561735,0.05720387,129.08,129.0,6.9823]
[1767365561933,0.05059743,129.05,129.03,0.05438357]
[1767365562237,0.05017885,129.05,129.03,0.05564791]
[1767365563336,0.33986069,129.1,129.03,0.05564791]
[1767365564440,0.0538608,129.08,129.03,0.05564791]
[1767365565144,0.0538608,129.08,129.03,7.03624791]
[1767365565337,0.0538608,129.08,129.03,0.05564791]
[1767365569847,0.0538608,129.08,129.03,7.03654791]
[1767365570147,0.0538608,129.08,129.03,0.05564791]
[1767365570340,91.5,129.11,129.03,108.64674791]
[1767365570644,91.5,129.11,129.05,6.9798]
[1767365571049,91.5,129.11,129.01,108.604]
[1767365571050,98.4767,129.11,129.01,108.604]
[1767365571343,91.5,129.11,129.02,108.6021]
[1767365571545,0.33986069,129.16,129.05,0.05696313]
[1767365571845,5.73782242,129.15,129.05,4.42954124]
[1767365572039,5.73782242,129.14,129.07,6.9788]
[1767365572237,7.31426069,129.16,129.06,108.5675]
[1767365572433,5.73902436,129.15,129.06,108.5675]
[1767365572647,0.05349717,129.12,129.09,0.05498143]
[1767365575848,0.05349717,129.12,129.09,7.03268143]
[1767365576038,0.33986069,129.16,129.09,7.03268143]
[1767365576344,0.35856698,129.14,129.06,6.9793]
[1767365576536,0.35856698,129.14,129.02,91.56]
[1767365576738,0.35856698,129.12,129.02,91.56]
[1767365576939,0.35856698,129.1,128.98,7.22769665]
[1767365577141,0.35856698,129.1,128.97,200.2006]
[1767365577436,0.05594713,129.05,129.02,0.05085395]
[1767365577633,0.41451411,129.05,128.94,108.6642]
[1767365577838,0.35856698,129.05,128.94,200.2242]
[1767365578546,7.33926698,129.04,128.94,91.56]
[1767365578752,0.05023294,129.0,128.98,0.05648017]
[1767365579146,0.40879992,129.0,128.9,108.6966]
[1767365579449,108.5631,129.07,128.93,108.6778]
[1767365579450,0.35856698,129.04,128.93,108.6778]
[1767365579655,0.35856698,129.04,128.94,108.6685]
[1767365579855,7.33766698,129.07,128.96,6.9844]
[1767365580237,108.5409,129.1,129.0,0.05370615]
[1767365580238,0.35856698,129.1,129.0,0.05370615]
[1767365580537,0.35856698,129.07,128.95,108.6591]
[1767365580741,0.35856698,129.08,128.99,108.6274]
[1767365580950,0.35856698,129.08,129.0,6.9823]
[1767365581143,0.35856698,129.08,128.99,108.6274]
[1767365581450,0.05446638,129.05,129.02,0.05009508]
[1767365581649,0.35856698,129.08,129.02,0.05009508]
[1767365581950,0.35856698,129.11,129.02,0.05009508]
[1767365582155,0.35856698,129.11,129.0,200.1758]
[1767365582542,0.05402196,129.07,129.04,0.05578508]
[1767365583651,0.05402196,129.07,128.99,98.5629]
[1767365583851,0.35856698,129.1,128.99,98.5629]
[1767365584547,0.05006382,129.06,129.03,0.04894779]
[1767365584948,0.05006382,129.06,128.97,108.6396]
[1767365584949,108.61986382,129.06,128.92,122.30383103]
[1767365585252,7.33986698,129.03,128.92,91.58]
[1767365585645,0.35856698,129.02,128.93,108.6727]
[1767365585850,0.05178159,128.99,128.96,0.05139787]
[1767365586254,0.35856698,129.04,128.96,0.05139787]
[1767365586455,0.35856698,129.04,128.95,108.6588]
[1767365586658,0.35856698,129.04,128.95,200.2388]
[1767365586858,91.87856698,129.06,128.95,200.2388]
[1767365587055,91.87856698,129.06,128.93,108.6741]
[1767365587056,0.35856698,129.05,128.93,108.6741]
[1767365587255,0.35856698,129.03,128.9,91.58]
[1767365587451,0.05574708,129.0,128.9,91.58]
[1767365587759,91.52,129.03,128.93,108.6782]
[1767365587961,0.35856698,129.02,128.9,200.281]
[1767365588157,0.35856698,129.0,128.92,6.9866]
[1767365588455,0.35856698,129.0,128.95,0.04884237]
[1767365588456,0.05593522,128.97,128.95,0.04884237]
[1767365589053,0.4145022,128.97,128.87,108.7257]
[1767365589258,0.35856698,128.97,128.86,91.58]
[1767365589463,0.35856698,128.96,128.86,91.58]
[1767365590156,0.05866854,128.92,128.9,0.05209018]
[1767365590357,0.05866854,128.92,128.84,200.3331]
[1767365590665,0.35856698,128.96,128.85,115.97229665]
[1767365590960,7.34406698,128.95,128.85,6.9905]
[1767365591163,0.35856698,128.95,128.85,6.9905]
[1767365591354,0.05424918,128.91,128.89,0.04969649]
[1767365592355,0.05424918,128.91,128.85,91.6]
[1767365593061,0.05424918,128.91,128.84,6.9909]
[1767365593263,0.05424918,128.91,128.82,200.3685]
[1767365593264,0.41281616,128.91,128.82,6.9921]
[1767365593468,0.35856698,128.91,128.8,7.22769665]
[1767365593652,0.35856698,128.89,128.79,91.62]
[1767365593857,0.35856698,128.89,128.79,6.9938]
[1767365594058,0.35856698,128.92,128.8,108.7879]
[1767365594253,7.34636698,128.91,128.81,6.9927]
[1767365594466,0.05510305,128.87,128.81,6.9927]
[1767365594766,0.05510305,128.87,128.8,91.62]
[1767365595548,0.05510305,128.87,128.82,0.04228868]
[1767365597568,0.35856698,128.86,128.77,11.74528272]
[1767365597757,0.35856698,128.85,128.77,11.74528272]
[1767365597951,0.35856698,128.83,128.77,11.74528272]
[1767365598761,7.35106698,128.82,128.71,6.9981]
[1767365599062,0.05212078,128.78,128.75,108.8301]
[1767365599263,0.35856698,128.86,128.75,108.8301]
[1767365599558,0.35856698,128.86,128.76,108.8173]
[1767365599959,7.34896698,128.86,128.76,6.9955]
[1767365600262,0.05733554,128.82,128.73,98.88769665]
[1767365600566,0.35856698,128.83,128.74,6.9964]
[1767365601058,0.35856698,128.83,128.75,6.9959]
[1767365601253,0.35856698,128.83,128.74,108.836]
[1767365601460,0.05474969,128.8,128.74,108.836]
[1767365601761,0.05474969,128.8,128.76,6.9954]
[1767365601963,0.05474969,128.8,128.73,91.66]
[1767365602162,0.35856698,128.87,128.75,108.8295]
[1767365602464,0.35856698,128.86,128.75,108.8295]
[1767365602963,0.35856698,128.85,128.74,91.68]
[1767365603362,0.05564532,128.81,128.78,0.05268787]
[1767365603968,0.05564532,128.81,128.74,91.68]
[1767365604152,0.4142123,128.81,128.69,116.10169665]
[1767365604359,0.35856698,128.8,128.68,108.8891]
[1767365604659,0.35856698,128.8,128.72,6.9976]
[1767365605058,0.0572043,128.77,128.72,108.8554]
[1767365605263,0.35856698,128.83,128.73,108.8404]
[1767365605459,91.66,128.85,128.74,108.8348]
[1767365606062,0.35856698,128.86,128.74,108.8348]
[1767365606268,0.35856698,128.86,128.77,6.9949]
[1767365606561,0.05730718,128.83,128.8,0.05579361]
[1767365607965,7.33629822,128.89,128.8,0.05579361]
[1767365608170,0.34739822,128.88,128.78,6.9942]
[1767365608867,0.34739822,128.88,128.82,0.05612]
[1767365609367,7.33669822,128.88,128.82,0.05612]
[1767365609765,0.34739822,128.88,128.73,400.8415]
[1767365609964,0.05699245,128.83,128.76,207.76659665]
[1767365610769,0.34739822,128.88,128.78,108.8032]
[1767365611260,0.34739822,128.88,128.77,108.8132]
[1767365611261,7.33679822,128.88,128.77,108.8132]
[1767365611662,7.33679822,128.88,128.78,108.8031]
[1767365611866,0.34739822,128.88,128.82,0.04961978]
[1767365612668,91.68,128.9,128.82,0.04961978]
[1767365612870,0.05967962,128.87,128.85,0.05025054]